Cogmind - Beta 14 @@@ ROGUE MODE // 2024.11.28 @ 20:53:26 Player: akira Result: Destroyed by G-50 Soldier with Heavy Laser Performance ------------- Evolutions (2) 1000 Regions Visited (5) 1000 Robots Destroyed (160) 800 Value Destroyed (6153) 6153 Prototype IDs (4) 80 Alien Tech Used (0) 0 Bonus (2309) 2309 TOTAL SCORE: 11342 Bonus ------- High Alert Combat Kills 1552 Follower Combat Kills 112 Entered Garrisons 200 Used RIF Installer 500 Friendly Fire -55 Cogmind --------- Core Integrity 0/550 Matter 114/300 Energy 290/290 System Corruption 1% Temperature Cool (27) Movement Treading (162) Location -8/Materials Parts ------- > --- POWER (1) -------- Improved Deuterium Engine > --- PROPULSION (4) --- Light Treads Light Treads Light Treads Armored Treads > --- UTILITY (3) ------ Advanced Heat Sink High-capacity Storage Unit Improved Light Armor Plating > --- WEAPON (3) ------- Enhanced Autogun Enhanced Autogun Enhanced Autogun > --- INVENTORY (20) --- Micro Fission Core Cryofiber Web Improved Cooling System High-capacity Matter Pod (200) Seismic Detector Core Analyzer Improved Weapon Cycler Hardened Light Armor Plating Hacking Suite System Shield Advanced System Shield Relay Coupler [Swarmer] (40) Relay Coupler [Swarmer] (44) Relay Coupler [Sentry] (22) Relay Coupler [Sentry] (17) Relay Coupler [Hunter] (14) Relay Coupler [Behemoth] (11) Heavy Phase Cannon Peak State ------------ > --- POWER ------------ Light Nuclear Core > --- PROPULSION ------- Light Armored Exoskeleton Light Armored Exoskeleton > --- UTILITY ---------- High-capacity Storage Unit Improved Targeting Computer Hardened Light Armor Plating > --- WEAPON ----------- Heavy Phase Cannon Mass Driver Katana > --- INVENTORY -------- Micro Fission Core Cryofiber Web Improved Heat Sink High-capacity Matter Pod Seismic Detector Improved Weapon Cycler Advanced System Shield Relay Coupler [NC] Relay Coupler [NC] Relay Coupler [Swarmer] Relay Coupler [Swarmer] Relay Coupler [Swarmer] Relay Coupler [Grunt] Relay Coupler [Sentry] Relay Coupler [Sentry] Relay Coupler [Sentry] Relay Coupler [Hunter] Relay Coupler [Hunter] Relay Coupler [Behemoth] [Rating: 45] Favorites ----------- Power Ion Engine Engine Ion Engine Power Core Nuclear Core Propulsion Armored Treads Treads Armored Treads Leg Light Armored Exoskeleton Wheel Armored Wheel Utility High-capacity Storage Unit Device Improved Terrain Scanner Storage High-capacity Storage Unit Processor Terrain Scan Processor Hackware Hacking Suite Protection Hardened Light Armor Plating Weapon Assault Cannon Energy Gun Small Laser Energy Cannon Heavy Phase Cannon Ballistic Gun Enhanced Autogun Ballistic Cannon Assault Cannon Launcher Improved Grenade Launcher Slashing Weapon Katana Special Melee Weapon Datajack Build | -11 -10 -9 -8 -8 -8 ------- Run | Yrd Mat Mat Mat Gar Mat Slots Evolved 4 | . . 2 2 . . Power . | . . . . . . Propulsion 2 | . . . 2 . . Utility 1 | . . 1 . . . Weapon 1 | . . 1 . . . Parts Attached 158 | 7 15 38 26 42 30 Power 13 | 2 3 1 1 4 2 Engine 7 | 2 3 1 . . 1 Core 6 | . . . 1 4 1 Reactor . | . . . . . . Propulsion 41 | 2 2 13 4 9 11 Treads 36 | 2 2 11 4 9 8 Leg 3 | . . . . . 3 Wheel 2 | . . 2 . . . Hover . | . . . . . . Flight . | . . . . . . Utility 59 | 1 5 11 18 13 11 Device 31 | . 3 6 11 7 4 Storage 5 | 1 1 1 1 1 . Processor 3 | . . 1 1 1 . Hackware 5 | . . . 1 . 4 Protection 15 | . 1 3 4 4 3 Artifact . | . . . . . . Weapon 45 | 2 5 13 3 16 6 Energy Gun 2 | 1 1 . . . . Energy Cannon 8 | . . . 1 6 1 Ballistic Gun 21 | 1 4 6 2 5 3 Ballistic Cannon 8 | . . 5 . 3 . Launcher 4 | . . 2 . 2 . Special Weapon . | . . . . . . Impact Weapon . | . . . . . . Slashing Weapon 1 | . . . . . 1 Piercing Weapon . | . . . . . . Special Melee Weapon 1 | . . . . . 1 Unidentified Prototypes 2 | . . 1 1 . . Parts Lost 14 | . . . . 11 3 Power 2 | . . . . 2 . Propulsion 7 | . . . . 6 1 Utility 1 | . . . . 1 . Weapon 4 | . . . . 2 2 Highest Loss Streak 3 | . . . . 3 2 To Critical Strikes . | . . . . . . Average Slot Usage (%) 98 | . 99 98 99 97 95 Engine 5 | . 13 11 6 . . Core 4 | . . . 2 8 8 Treads 30 | . 27 19 35 34 31 Device 6 | . 8 9 8 5 4 Storage 10 | . 14 11 9 11 9 Processor 6 | . . 11 6 4 5 Hackware 1 | . . . 1 . 3 Protection 3 | . 5 1 1 5 3 Energy Cannon 3 | . . . 1 7 7 Ballistic Gun 10 | . 18 13 7 12 3 Ballistic Cannon 10 | . . 18 18 2 7 Launcher 1 | . . . . 3 . Peak Build Rating 45 | 7 10 26 34 39 45 Average Rating 28 | 4 9 20 32 33 39 On Entrance 18 | . 7 9 25 33 39 Naked Turns . | . . . . . . Heaviest Build 74 | 12 32 66 72 74 74 Greatest Support 89 | 40 40 46 89 89 80 Greatest Overweight (x) 5 | 3 4 5 . 1 2 Average Overweight (x) . | . . 1 . . . Largest Inventory Capacity 20 | 8 15 20 20 20 20 Average Capacity 18 | 7 13 17 20 20 20 Most Carried 20 | 8 15 20 20 20 20 Average Carried 18 | 5 12 17 19 19 18 Final Capacity 20 | 8 15 20 20 20 20 Final Carried 20 | 8 15 20 20 20 18 Class Distribution -------------------- 26% | Gunner 19% | Mutant 17% | Skirmisher 12% | Scavenger-Tank 10% | Bothacker-Mutant 7% | Tank 4% | Scavenger-Gunner 3% | Scavenger-Skirmisher Dominant Class ---------------- Mutant | -10/Materials Skirmisher | -9/Materials Gunner | -8/Materials Gunner | -8/Garrison Bothacker-Mutant | -8/Materials Resources | -11 -10 -9 -8 -8 -8 ----------- Run | Yrd Mat Mat Mat Gar Mat Matter Collected 5102 | 187 219 1417 814 1004 1461 Remotely . | . . . . . . Salvage Created 5508 | 32 239 1257 853 960 2167 Parts 355 | 6 25 94 58 53 119 Haulers Intercepted 1 | . . . . . 1 Recyclers Shooed 1 | . . 1 . . . Parts Field Recycled . | . . . . . . Retrieved Matter . | . . . . . . Parts Self-Destructed . | . . . . . . Prevented . | . . . . . . Kills | -11 -10 -9 -8 -8 -8 ------- Run | Yrd Mat Mat Mat Gar Mat Combat Hostiles Destroyed 134 | . 13 29 24 31 37 Guns 68 | . 13 22 6 20 7 Cannons 62 | . . 7 18 8 29 AOE 3 | . . . . 3 . Classes Destroyed 17 | 1 3 7 1 1 4 Worker 3 | . . . . . 3 Builder 6 | . 1 . 3 . 2 Tunneler 3 | 2 . . 1 . . Hauler 1 | . . . . . 1 Recycler 7 | . . 1 1 . 5 Mechanic 1 | . . 1 . . . Operator 2 | . . 1 1 . . Watcher 3 | . . 1 1 . 1 Swarmer 33 | . 12 3 8 10 . Grunt 54 | . 1 13 8 12 20 Brawler 6 | . . 2 . . 4 Duelist 4 | . . 1 . . 3 Protector 2 | . . . . . 2 Sentry 23 | . . 10 6 3 4 Specialist 4 | . . . . . 4 Hunter 7 | . . . 2 5 . Behemoth 1 | . . . . 1 . Best Kill Streak 10 | 1 3 4 5 6 10 Combat Bots Only 7 | . 3 4 5 6 7 Max Kills in Single Turn 3 | 1 1 1 3 2 2 Gunslinging 1 | . . . . 1 . Exploded 2 | . . . . 2 . Melee . | . . . . . . Uniques/NPCs Destroyed . | . . . . . . Combat | -11 -10 -9 -8 -8 -8 -------- Run | Yrd Mat Mat Mat Gar Mat Hostile Shots Fired 651 | . 72 75 97 217 190 Missed 175 | . 20 25 18 61 51 Damage Taken 7135 | . 421 717 1094 2742 2161 Core 708 | . 81 74 101 168 284 Absorbed by Shields . | . . . . . . Ignored by Resistances 276 | . . . 24 252 . Regen/Repaired (Parts) 1134 | . . 76 373 . 685 Core Remaining (%) 82 | 100 67 81 . . . Volleys Fired 376 | 4 40 62 59 106 105 Largest 3 | 2 2 3 3 3 3 Hottest 195 | 60 60 132 132 195 147 Shots Fired 934 | 8 79 185 170 257 235 Gun 516 | 8 79 128 51 152 98 Cannon 407 | . . 57 119 94 137 Launcher 11 | . . . . 11 . Special . | . . . . . . Kinetic 727 | 4 45 185 167 164 162 Thermal 196 | 4 34 . 3 82 73 Explosive 11 | . . . . 11 . Electromagnetic . | . . . . . . Robot Hit Streak 19 | 4 6 13 19 16 10 Robot Miss Streak 5 | 1 4 4 5 3 5 Penetration Max 1 | . . . . 1 1 Secondary Targets 9 | . 1 2 . 6 . Max Gunslinging Chain 1 | . 1 1 . 1 . Shots Hit Robots 542 | 5 38 104 94 144 157 Core Hits 223 | 2 17 46 42 58 58 Critical Kills 2 | . . 1 . . 1 Critical Parts Destroyed 3 | . 1 . . 2 . Critical Strikes 11 | . 1 2 3 2 3 Meltdown 1 | . . . . . 1 Destroy 4 | . 1 1 . 2 . Blast 6 | . . 1 3 . 2 Melee Attacks 15 | . . . . . 15 Impact . | . . . . . . Slashing 2 | . . . . . 2 Piercing . | . . . . . . Sneak Attacks 9 | . . . . . 9 Combat Hostiles . | . . . . . . Follow-up Attacks . | . . . . . . Damage Inflicted 12747 | 49 414 1923 2021 3785 4555 Guns 4774 | 49 414 1112 507 1471 1221 Cannons 6941 | . . 810 1514 1405 3212 Explosions 909 | . . . . 909 . Melee 122 | . . . . . 122 Ramming 1 | . . 1 . . . Kinetic 8480 | 16 170 1922 2021 1612 2739 Thermal 3235 | 33 244 . . 1264 1694 Explosive 909 | . . . . 909 . Electromagnetic . | . . . . . . Impact . | . . . . . . Slashing 122 | . . . . . 122 Piercing . | . . . . . . Highest Corruption 1 | . . . 1 1 1 Average Corruption 1 | . . . 1 1 1 Corruption Purged . | . . . . . . Corruption Blocked . | . . . . . . Effects 50 | . . . 1 24 25 Message Errors 13 | . . . . 7 6 Matter Fused 10 | . . . . 7 3 Heat Flow Errors 5 | . . . . 5 . Energy Discharges 8 | . . . . 2 6 Data Loss (minor) 7 | . . . . 1 6 Data Loss (major) 2 | . . . . 1 1 Misfires 3 | . . . 1 . 2 Alerts 2 | . . . . 1 1 Overload Shots . | . . . . . . Overflow Damage 121 | . . . 25 42 54 Projectiles 121 | . . . 25 42 54 Explosions . | . . . . . . Melee . | . . . . . . Knockbacks 42 | . . 7 18 1 16 Impact . | . . . . . . Kinetic 40 | . . 7 16 1 16 Secondary 2 | . . . 2 . . Self-Inflicted Damage . | . . . . . . Shots . | . . . . . . Rammed 1 | . . 1 . . . Targets Rammed 1 | . . 1 . . . Kicked . | . . . . . . Crushed . | . . . . . . Highest Temperature 572 | 40 165 326 350 508 572 Average Temperature 114 | 18 47 78 115 151 124 Received Heat Transfer 2154 | . 18 288 342 570 936 Effects 22 | . . . 5 6 11 Shutdowns 1 | . . . . . 1 Energy Bleed 2 | . . . 1 1 . Interference 12 | . . . 3 3 6 Matter Decay 1 | . . . . 1 . Short Circuit 3 | . . . 1 1 1 Damage (minor) 1 | . . . . . 1 Damage (major) 2 | . . . . . 2 Siege Activations . | . . . . . . Robots Corrupted . | . . . . . . Combat Hostiles . | . . . . . . Parts Fried . | . . . . . . Impact Corruptions . | . . . . . . Robots Melted 1 | . . . . . 1 Combat Hostiles 1 | . . . . . 1 Parts Melted 5 | . . . . 2 3 Heat Transferred 4123 | 75 550 . . 1751 1747 Parts Sabotaged . | . . . . . . Parts Stolen . | . . . . . . Parts Stripped . | . . . . . . Power Chain Reactions . | . . . . . . Alert | -11 -10 -9 -8 -8 -8 ------- Run | Yrd Mat Mat Mat Gar Mat Peak Influence 3003 | 10 206 354 509 3003 1500 Initial 1463 | . 6 22 22 319 1463 Average 713 | 3 75 116 171 1584 1057 Maximum Alert Level 5 | . 1 1 2 5 4 Low Security (%) 41 | 100 97 74 71 . . Level 1 9 | . 2 25 5 9 . Level 2 8 | . . . 22 10 4 Level 3 12 | . . . . 12 48 Level 4 14 | . . . . 19 46 Level 5 13 | . . . . 48 . High Security . | . . . . . . Max Security . | . . . . . . Squads Dispatched 13 | . . 2 2 . 9 Investigation 2 | . . . 1 . 1 Extermination . | . . . . . . Reinforcement 6 | . . 2 1 . 3 Assault 5 | . . . . . 5 Garrison . | . . . . . . Intercept . | . . . . . . Searches Triggered . | . . . . . . Construction Impeded . | . . . . . . Haulers Reinforced . | . . . . . . Active Scanning Responses . | . . . . . . Cargo Convoy Interrupts . | . . . . . . Stealth | -11 -10 -9 -8 -8 -8 --------- Run | Yrd Mat Mat Mat Gar Mat Distress Signals 9 | . 2 2 3 . 2 Communications Jammed . | . . . . . . Distress Signals . | . . . . . . Times Spotted 227 | . 28 51 39 34 75 Peak Tracking Total 6 | . 5 6 6 6 6 Tactical Retreats 10 | . 3 2 2 1 2 Traps | -11 -10 -9 -8 -8 -8 ------- Run | Yrd Mat Mat Mat Gar Mat Traps Triggered 7 | . 2 1 1 2 1 Indirectly . | . . . . . . Trap Hack Attempts . | . . . . . . Triggered . | . . . . . . Disarmed 4 | . . 4 . . . Reprogrammed . | . . . . . . Reused . | . . . . . . Traps Extracted . | . . . . . . Installed . | . . . . . . Triggered . | . . . . . . Machines | -11 -10 -9 -8 -8 -8 ---------- Run | Yrd Mat Mat Mat Gar Mat Machines Disabled 9 | . . 1 . 7 1 Max in Single Turn 1 | . . 1 . 1 1 Garrison Relay 5 | . . . . 5 . Machines Repaired . | . . . . . . Machines Dismantled . | . . . . . . Machines Sabotaged . | . . . . . . Overloaded Fab Kills . | . . . . . . Hacking | -11 -10 -9 -8 -8 -8 --------- Run | Yrd Mat Mat Mat Gar Mat Machines Accessed 41 | . 5 13 12 3 8 Terminals 35 | . 5 11 9 3 7 Fabricators . | . . . . . . Repair Stations 4 | . . 1 2 . 1 Recycling Units . | . . . . . . Scanalyzers 1 | . . 1 . . . Garrison Access 1 | . . . 1 . . Total Hacks 113 | . 13 43 29 6 22 Successful 65 | . 4 25 22 1 13 Failed 48 | . 9 18 7 5 9 Catastrophic 7 | . . . . 3 4 Database Lockouts . | . . . . . . Manual 74 | . 12 26 18 . 18 Terminals 95 | . 13 37 22 6 17 Fabricators . | . . . . . . Repair Stations 13 | . . 2 6 . 5 Recycling Units . | . . . . . . Scanalyzers 4 | . . 4 . . . Garrison Access 1 | . . . 1 . . Terminal Hacks 19 | . . 11 5 1 2 Record 1 | . . 1 . . . Prototype ID Bank 1 | . . . 1 . . Branch Access Points 1 | . . 1 . . . Terminal Index 1 | . . 1 . . . Alert Level 3 | . . 2 1 . . Unreport Threat 6 | . . 3 1 . 2 Locate Traps 2 | . . 2 . . . Disarm Traps 1 | . . 1 . . . Hauler Manifests 2 | . . . 2 . . Patrol Navigation 1 | . . . . 1 . Fabricator Hacks . | . . . . . . Repair Station Hacks 12 | . . 2 6 . 4 Scan Component 6 | . . 1 3 . 2 Repair 6 | . . 1 3 . 2 Recycling Unit Hacks . | . . . . . . Scanalyzer 3 | . . 3 . . . Insert Component 2 | . . 2 . . . Analyze 1 | . . 1 . . . Garrison Access Hacks 1 | . . . 1 . . Unlock Access 1 | . . . 1 . . Unauthorized Hacks 30 | . 4 9 10 . 7 Terminals 30 | . 4 9 10 . 7 Assimilate 2 | . . . 2 . . Botnet 28 | . 4 9 8 . 7 Fabricators . | . . . . . . Repair Stations . | . . . . . . Recycling Units . | . . . . . . Scanalyzers . | . . . . . . Garrison Access . | . . . . . . Data Cores Recovered 1 | . . . 1 . . Used . | . . . . . . Hacking Detections 34 | . 4 12 8 2 8 Full Trace Events 4 | . . . 2 2 . Feedback Events . | . . . . . . Feedback Blocked . | . . . . . . Robot Schematics Acquired . | . . . . . . Robots Built . | . . . . . . Authchips . | . . . . . . Time . | . . . . . . Total Robot Build Rating . | . . . . . . Part Schematics Acquired 1 | . . 1 . . . Parts Built . | . . . . . . Authchips . | . . . . . . Time . | . . . . . . Total Part Build Rating . | . . . . . . Parts Repaired 6 | . . 1 3 . 2 Time 262 | . . 38 130 . 94 Parts Recycled . | . . . . . . Recycled Matter . | . . . . . . Retrieved Matter . | . . . . . . Retrieved Components . | . . . . . . Parts Scanalyzed 1 | . . 1 . . . Part Schematics Acquired 1 | . . 1 . . . Parts Damaged . | . . . . . . Bothacking | -11 -10 -9 -8 -8 -8 ------------ Run | Yrd Mat Mat Mat Gar Mat Used RIF Installer 1 | . . . . 1 . Robots Hacked 7 | . . . . . 7 Non-combat 3 | . . . . . 3 Combat 4 | . . . . . 4 Robot Hacks Applied 11 | . . . . . 11 parse_system 1 | . . . . . 1 purge_threat 4 | . . . . . 4 formatsys_low 2 | . . . . . 2 formatsys_high 4 | . . . . . 4 Relay Couplers Released 21 | . . . . 21 . Machine Destruction 21 | . . . . 21 . Attached 4 | . . . . . 4 Fabnet Peak Effective % . | . . . . . . Robots Rewired . | . . . . . . Allies Hacked . | . . . . . . Hacks Repelled . | . . . . . . Allies | -11 -10 -9 -8 -8 -8 -------- Run | Yrd Mat Mat Mat Gar Mat Total Allies 6 | . . . . . 6 Largest Group 4 | . . . . . 4 Highest-Rated Group 69 | . . . . . 69 Highest-Rated Ally 29 | . . . . . 29 Total Orders 8 | . . . . . 8 STAY 3 | . . . . . 3 FOLLOW 2 | . . . . . 2 AID 3 | . . . . . 3 Ally Attacks 55 | . . . . . 55 Total Damage 641 | . . . . . 641 Kills 6 | . . . . . 6 Allies Corrupted . | . . . . . . Allies Melted 1 | . . . . . 1 Intel | -11 -10 -9 -8 -8 -8 ------- Run | Yrd Mat Mat Mat Gar Mat Robot Analysis Total . | . . . . . . Derelict Logs Recovered . | . . . . . . Drone Launches . | . . . . . . Drone Recoveries . | . . . . . . Exploration | -11 -10 -9 -8 -8 -8 ------------- Run | Yrd Mat Mat Mat Gar Mat Turns Passed 14714 | 122 1440 3208 2985 4088 2871 Spaces Moved 6495 | 63 759 1221 1169 2044 1239 Core 28 | 27 1 . . . . Treads 6118 | 36 758 968 1169 2044 1143 Legs 96 | . . . . . 96 Wheels 253 | . . 253 . . . Hover . | . . . . . . Flight . | . . . . . . Fastest Speed 50 | 50 160 115 162 162 162 Average Speed 172 | 148 160 185 162 169 182 Slowest Speed 360 | 200 250 240 162 250 360 Overloaded Moves . | . . . . . . Propulsion Burnouts . | . . . . . . Robots Hopped . | . . . . . . Cave-ins Triggered . | . . . . . . Exploration Rate (%) 65 | 5 83 92 75 73 66 Regions Visited 5 Branch Regions . Pre-discovered Areas . | . . . . . . Known Exits Taken 1 | . . . 1 . . Unknown Exits Taken 3 | 1 1 1 . . . Scrap Searched . | . . . . . . Spaces Dug 8 | . . . 4 3 1 Terrain Destroyed 155 | . . 6 27 76 46 Melee . | . . . . . . Projectile 84 | . . 6 27 5 46 AOE 71 | . . . . 71 . Terrain Rammed . | . . . . . . Walls Destroyed . | . . . . . . Machines Disabled . | . . . . . . Actions | -11 -10 -9 -8 -8 -8 --------- Run | Yrd Mat Mat Mat Gar Mat Total 9340 | 82 911 2034 2150 2488 1675 Wait 2088 | . 81 647 868 242 250 Move 6491 | 62 758 1220 1169 2043 1239 Hop . | . . . . . . Pick Up 100 | 9 10 26 13 26 16 Fast Attach 46 | 4 7 9 6 11 9 Attach 25 | 2 1 1 2 10 9 Detach . | . . . . . . Swap 87 | 1 7 28 18 21 12 Drop 107 | . 7 40 15 25 20 Fire 376 | 4 40 62 59 106 105 Melee 15 | . . . . . 15 Ram . | . . . . . . Kick . | . . . . . . Crush 1 | . . 1 . . . Escape Stasis 4 | . . . . 4 . Rewire . | . . . . . . Trap . | . . . . . . Miscellaneous . | . . . . . . Route ------- -11/Scrapyard -10/Materials (discovered 4 exits: *Mat x2 / [*Min x2]) -9/Materials (discovered 6 exits: *Mat x3 / *Min x2 / *Sto) -8/Materials (discovered 3 exits: [*Fac x2] / Gar) -8/Garrison (discovered 3 exits: *Mat x3) -8/Materials (discovered 2 exits: [*Fac x2]) History --------- Turn | Location | Event 9 | -11/Scrapyard | Discovered new exit (range 15) 123 | -11/Scrapyard | Entered Materials 300 | -10/Materials | Build established: Mutant 403 | -10/Materials | Discovered new exit (range 14) 667 | -10/Materials | Discovered new exit (range 16) 825 | -10/Materials | Discovered new exit (range 4) 1227 | -10/Materials | Discovered new exit (range 14) 1563 | -10/Materials | Entered another Materials area 1563 | -9/Materials | Evolved 2 slots: Utility x1, Weapon x1 2231 | -9/Materials | Discovered new exit (range 15) 2555 | -9/Materials | Discovered new exit (range 14) 2607 | -9/Materials | Discovered new exit (range 15) 2636 | -9/Materials | Identified exit to Mines 2636 | -9/Materials | Identified exit to Storage 3031 | -9/Materials | Discovered new exit (range 15) 3269 | -9/Materials | Build established: Skirmisher 3572 | -9/Materials | Discovered new exit (range 7) 4455 | -9/Materials | Repaired Assault Cannon 4771 | -9/Materials | Entered another Materials area 4771 | -8/Materials | Evolved 2 slots: Propulsion x2 5885 | -8/Materials | Discovered new exit (range 16) 6338 | -8/Materials | Repaired Imp. Treads 6452 | -8/Materials | Repaired Arm. Treads 6616 | -8/Materials | Build established: Gunner 6620 | -8/Materials | Discovered new exit (range 7) 7666 | -8/Materials | Repaired Enh. Autogun 7756 | -8/Materials | Identified exit to Garrison 7756 | -8/Materials | Entered Garrison 7868 | -8/Garrison | Triggered checkpoint 7995 | -8/Garrison | Installed Relay Interface Framework 8252 | -8/Garrison | Discovered new exit (range 10) 8290 | -8/Garrison | Triggered checkpoint 8300 | -8/Garrison | Build established: Tank 8360 | -8/Garrison | Garrison Relay disabled 8467 | -8/Garrison | Triggered checkpoint 8661 | -8/Garrison | Triggered checkpoint 8696 | -8/Garrison | Garrison Relay disabled 8764 | -8/Garrison | Discovered new exit (range 11) 8868 | -8/Garrison | Triggered checkpoint 8885 | -8/Garrison | Build established: Scavenger-Tank 8951 | -8/Garrison | Discovered new exit (range 13) 8992 | -8/Garrison | Triggered checkpoint 9051 | -8/Garrison | Garrison Relay disabled 9228 | -8/Garrison | Triggered checkpoint 9320 | -8/Garrison | Triggered checkpoint 9432 | -8/Garrison | Triggered checkpoint 9615 | -8/Garrison | Garrison Relay disabled 9916 | -8/Garrison | Build established: Scavenger-Gunner 10020 | -8/Garrison | Triggered checkpoint 10121 | -8/Garrison | Spotted B-75 Beast 10190 | -8/Garrison | Lost 3 parts (1p1n1u) 10362 | -8/Garrison | Destroyed B-75 Beast 10379 | -8/Garrison | Lost 3 parts (1p1n1w) 10588 | -8/Garrison | Build established: Gunner 11098 | -8/Garrison | Garrison Relay disabled 11844 | -8/Garrison | Entered Materials 12188 | -8/Materials | Build established: Mutant 12533 | -8/Materials | Core integrity fell below 50% 12609 | -8/Materials | Discovered new exit (range 5) 13011 | -8/Materials | Build established: Bothacker-Mutant 13044 | -8/Materials | First assault squad dispatched 13854 | -8/Materials | Lost 3 allies 14076 | -8/Materials | Repaired Hvy. Phase Cannon 14115 | -8/Materials | Repaired Arm. Treads 14278 | -8/Materials | Core integrity fell below 20% 14315 | -8/Materials | Discovered new exit (range 16) 14330 | -8/Materials | Destroyed 7 combat bots 14598 | -8/Materials | Build established: Scavenger-Tank 14715 | -8/Materials | Destroyed by G-50 Soldier with Heavy Laser Last Messages --------------- 14640_ Acquired 4 matter. 14644_ ALERT: Significant disruption in Zone 2W, assault force dispatched. 14661_ Acquired 6 matter. 14671_ ALERT: Suspicious intruders detected, dispatching Specialist reinforcements to area. 14673_ Acquired 6 matter. 14675_ C-30 ARC bursts open, deploying its payload. 14675_ G-50 Soldier unfolds itself. 14675_ L-31 Rogue unfolds itself. 14675_ B-36 Bruiser unfolds itself. 14675_ G-47 Trooper unfolds itself. 14675_ M-28 Smith unfolds itself. 14676_ System corrupted: Substantial component data lost. 14694_ X-57 Shotgunner destroyed. 14704_ K-01 Serf collects debris. 14712_ X-57 Shotgunner destroyed. 14714_ K-01 Serf collects debris. 14715_ Critical hit (Burn: +37). Map ----- +----------------------------------------------------+ | | | | | | | | | | | ?????????????????????????????????????????????????? | | ?????????????????????????????????????????????????? | | ?????????????????????????????????????????????????? | | ??????????????????????????????????????#######????? | | ?????????????????????#########?#####? #????? | | ?????????????????????# ?# #? #????? | | ?????????????????????# # < # #????? | | ?????????????????????# !! # # #????? | | ?????????????????????# ! !! + + #????? | | ?????????????????????# !! # # #????? | | ?????????????????????#] # # =#????? | | ?????????????????????# ?#%% #? #????? | | ?????????????????????# ?# #? #????? | | ?????????????????????########?## ##########????? | | ???????????????????????# ! # # #???????????? | | ???????????????????????# + ############### | | ????????????????H??????# !#% | | ???????????????????????######?##% [* | | ????????????????????##??########!=%############### | | ????????????????????# # ! #%= % #??????????# | | ????????????????????# @ %[#!!! %#??????????# | | ????????????????????# l b=k% g! #??????????# | | ????????????????????# g*#! = =#??????????# | | ????????????????????# # [[=]#??????????# | | ????????????????????# ## %[##??????????# | | ????????????????????# ##= !#???????????# | | ????????????????????# ##=!=#?##????????# | | ????????????????????############[%%#?# ????? ## | | ??????????????????##############%*]#?# """ #### | | ?????????????????? !!==!%%#?# """"" #??? | | ????????????????????????# !=%!*!#?# """"" #??? | | ??????????????????####??# =|=!!=#?# """"" #??? | | ???????????????# ?# %=%[%[#?# """ #??? | | ???????????????# ""?# "Y*!!!*=#?# [ #??? | | ???????????????# """# ""=/[[ #?# #??? | | ???????????????# """# "%" #?# #??? | | ???????????????# + " #######+####??? | | ???????????????# """# #????? | | ???????????????# """####"### #????? | | ???????????????# ""???! # """ #????? | | ???????????????# ??# # """ #????? | | ??????????????????####???# !# """ #????? | | ?????????????????????????# # """ " " ###### | | ?????????????????????????####### "R" # | | ????????????????????????? """ # | +----------------------------------------------------+ Best States ------------- Heat Dissipation 59 Energy Generation 16 Energy Capacity 290 Matter Stores 300 Matter Capacity 500 Sight Range 16 Terrain Scan Range 16 Terrain Scan Density 110 Base Temperature (-) 100 Armor Coverage 300 Resistance: KI 20 Weapon Cycling 20 Evasion (%) 40 Targeting Accuracy 6 Recoil Reduction 4 Offensive Hacking 10 Relay Coupler Types 1 Relay Coupler Value 44 Item Schematics ----------------- Hacking Suite | -9/Materials | Scanalyzed Robot Schematics ------------------ None Fabricated ------------ Nothing Alien Tech Used ----------------- None Achievements -------------- None Challenges ------------ None Game ------ Seed ExpertStructuralLeg Manual? 0 Play Time 02:17:04 Cumulative 62.7 hours Start 2024.11.28 @ 17:55:04 End 2024.11.28 @ 20:53:26 Sessions 3 Manual Loads 0 Difficulty Rogue Special Mode None Game No. 67 Rogue 67 Adventurer 0 Explorer 0 Win Type - Total 0 Types 0/0/0/0/0/0/0/0/0 Lore% 10 Gallery% 32 Achievement% 31 Wizard Run 0 Options --------- Layout 2 ASCII 0 Keyboard 0 Movement Mouse Keybinds 0 Fullscreen 2 Font 16/SmallcapsGlow Map View 55x47 Zoom Use 13% Tactical HUD 1 Map Filters NONE Filters NONE Steam 1 RUN: f42bad6d-7682-41a8-a56f-dd9d6a50375b